bitfinex/quotes_BTCUSD_20251201
["timestamp","ask_amount","ask_price","bid_price","bid_amount"]
[1764600647776,0.01161737,86078.0,86075.0,0.04901]
[1764600648000,0.2439591,86080.0,86075.0,0.04901]
[1764600648217,0.24395544,86082.0,86078.0,0.01161737]
[1764600648218,0.23233761,86082.0,86078.0,0.01161737]
[1764600648389,0.2439572,86081.0,86077.0,0.0116175]
[1764600648602,0.01740967,86091.0,86080.0,0.0116171]
[1764600648812,0.2323528,86076.0,86075.0,0.04901]
[1764600649357,0.2323771,86067.0,86066.0,0.04671]
[1764600649554,0.2323771,86067.0,86066.0,0.05419]
[1764600649760,0.01161831,86071.0,86067.0,0.01161885]
[1764600650134,0.23237589,86068.0,86066.0,0.05419]
[1764600650421,0.01161939,86063.0,86060.0,0.24401567]
[1764600650638,0.2323906,86062.0,86061.0,0.06723647]
[1764600650890,0.2440038,86066.0,86061.0,0.00748]
[1764600651097,0.232366,86072.0,86067.0,0.23237672]
[1764600651303,0.23237444,86068.0,86066.0,0.30871877]
[1764600651514,0.01161831,86071.0,86068.0,0.01161872]
[1764600651515,0.24398703,86071.0,86068.0,0.01161872]
[1764600651649,0.2323717,86069.0,86066.0,0.30871828]
[1764600651860,0.2323771,86067.0,86066.0,0.06472]
[1764600652057,0.23237448,86068.0,86066.0,0.0722]
[1764600652284,0.24399097,86069.0,86066.0,0.07376907]
[1764600652480,0.24399097,86069.0,86067.0,0.002]
[1764600652701,0.23235186,86077.0,86066.0,0.31619876]
[1764600652702,0.5271004,86100.0,86068.0,0.06472]
[1764600652849,0.5271004,86100.0,86066.0,0.01909899]
[1764600652850,0.0425908,86086.0,86080.0,0.0116171]
[1764600653051,0.0365881,86087.0,86083.0,0.01161669]
[1764600653387,0.01161656,86084.0,86081.0,0.04671]
[1764600653571,0.23233455,86083.0,86081.0,0.04671]
[1764600653767,0.2323585,86074.0,86072.0,0.04671]
[1764600653984,0.24396282,86079.0,86073.0,0.01456724]
[1764600654199,0.01161629,86086.0,86078.0,0.06472]
[1764600654420,0.23233636,86083.0,86081.0,0.06472]
[1764600654632,0.23233427,86083.0,86081.0,0.06472]
[1764600655051,0.2323366,86082.0,86077.0,0.0979]
[1764600655263,0.24396162,86080.0,86078.0,0.01824128]
[1764600655511,1.0053691,86086.0,86080.0,0.0116171]
[1764600655698,0.23233511,86083.0,86080.0,0.24395648]
[1764600655976,0.23233511,86083.0,86078.0,0.02985865]
[1764600655977,0.2439543,86082.0,86078.0,0.02985865]
[1764600656193,0.23234254,86080.0,86078.0,0.01824128]
[1764600656339,0.24395626,86081.0,86079.0,0.06448889]
[1764600656681,0.24395626,86081.0,86080.0,0.001]
[1764600657011,0.24395626,86081.0,86079.0,0.06448889]
[1764600657240,0.01161642,86085.0,86079.0,0.06448889]
[1764600657241,0.0063,86105.0,86080.0,0.06472]
[1764600657443,0.2323447,86079.0,86078.0,0.002]
[1764600657645,1.0053691,86086.0,86078.0,0.002]
[1764600657646,0.04259039,86089.0,86085.0,0.23232713]
[1764600657858,0.01161629,86086.0,86083.0,0.2323335]
[1764600658032,0.02500024,86093.0,86089.0,0.01161588]
[1764600658228,0.02500024,86093.0,86088.0,0.2970379]
[1764600658229,0.01161561,86091.0,86088.0,0.06472]
[1764600658440,0.23231771,86089.0,86088.0,0.06472]
[1764600658661,0.23232311,86087.0,86086.0,0.00748]
[1764600658948,0.01161588,86089.0,86086.0,0.34932188]
[1764600659125,0.00039211,86089.0,86088.0,0.06472]
[1764600659304,0.00039211,86089.0,86088.0,0.29704041]
[1764600659504,0.00039211,86089.0,86088.0,0.39494041]
[1764600660465,0.01161399,86103.0,86088.0,0.39494041]
[1764600660466,0.03097451,86126.0,86123.0,0.0116113]
[1764600660665,0.03097451,86141.0,86132.0,0.01161008]
[1764600660869,0.00011765,86141.0,86140.0,0.04671]
[1764600661075,0.01161156,86121.0,86099.0,0.04671]
[1764600661270,0.59303529,86112.0,86103.0,0.009342]
[1764600661477,0.59303529,86112.0,86106.0,0.01161359]
[1764600661704,0.00752,86140.0,86124.0,0.01161116]
[1764600661908,0.24379328,86139.0,86130.0,0.01161035]
[1764600662083,0.01160914,86139.0,86132.0,0.01161008]
[1764600662296,0.59303529,86140.0,86133.0,0.03317553]
[1764600662640,0.59303529,86150.0,86139.0,0.01160914]
[1764600662816,0.01160644,86159.0,86154.0,0.01160712]
[1764600663029,0.82516339,86160.0,86146.0,0.00752]
[1764600663030,0.01160779,86149.0,86146.0,0.00752]
[1764600663185,0.01160779,86149.0,86147.0,0.00752]
[1764600663387,0.01160712,86154.0,86149.0,0.01160779]
[1764600663573,0.46414953,86180.0,86155.0,0.23213861]
[1764600663574,0.2321249,86161.0,86155.0,0.23213861]
[1764600663775,0.00011754,86161.0,86156.0,0.01160685]
[1764600663978,0.23213751,86156.0,86154.0,0.04671]
[1764600664182,0.01160671,86157.0,86155.0,0.00752]
[1764600664531,0.01160766,86150.0,86147.0,0.04671]
[1764600664734,0.23215591,86149.0,86147.0,0.04671]
[1764600665097,0.23215591,86149.0,86148.0,0.00752]
[1764600665302,0.01160685,86156.0,86148.0,0.00752]
[1764600665303,0.01160671,86157.0,86148.0,0.17014]
[1764600665534,0.01160712,86154.0,86148.0,0.17014]
[1764600665756,0.00011754,86161.0,86159.0,0.23212649]
[1764600665945,0.00011754,86161.0,86160.0,0.21899958]
[1764600666158,0.00011754,86161.0,86155.0,0.01160698]
[1764600666159,0.01160698,86155.0,86144.0,0.10950846]
[1764600666330,0.01160671,86157.0,86149.0,0.24376231]
[1764600666526,0.01172371,86161.0,86156.0,0.23213599]
[1764600666772,0.00011754,86161.0,86160.0,0.06472]
[1764600666925,0.00011754,86161.0,86160.0,0.09788693]
[1764600667146,0.00011754,86161.0,86160.0,0.19578693]
[1764600668266,0.00011754,86161.0,86160.0,0.06472]
[1764600668464,0.00011754,86161.0,86147.0,0.04671]
[1764600668465,0.23215845,86149.0,86147.0,0.04671]
[1764600668640,0.23215845,86149.0,86148.0,0.00752]
[1764600668846,0.23215845,86149.0,86114.0,0.02901932]
[1764600668847,0.0116113,86123.0,86114.0,0.23225027]
[1764600669028,0.01161197,86118.0,86110.0,0.0979]
[1764600669233,0.0116117,86120.0,86114.0,0.01161251]
[1764600669434,0.24384811,86120.0,86117.0,0.06472]
[1764600669633,0.24384259,86122.0,86119.0,0.06472]
[1764600669949,0.23225717,86112.0,86109.0,0.24387597]
[1764600670150,0.0116121,86117.0,86114.0,0.01161251]
[1764600670358,0.01161224,86116.0,86111.0,0.06472]
[1764600670552,0.23225836,86111.0,86109.0,0.00011765]
[1764600671657,0.23225836,86111.0,86110.0,0.06472]
[1764600672006,0.23225836,86111.0,86109.0,0.00011765]
[1764600672571,0.38552299,86110.0,86109.0,0.00011765]
[1764600674910,0.323,86110.0,86109.0,0.00011765]
[1764600676144,0.323,86110.0,86109.0,0.04682765]
[1764600676145,0.003,86110.0,86109.0,0.04682765]
[1764600676348,0.003,86110.0,86109.0,0.05385875]
[1764600678630,0.0116082,86146.0,86128.0,0.06415]
[1764600678867,0.01160914,86139.0,86134.0,0.23219548]
[1764600679071,0.2437983,86137.0,86132.0,0.23219967]
[1764600679227,0.24380211,86136.0,86132.0,0.24381065]
[1764600679435,0.23219448,86135.0,86133.0,0.06024459]
[1764600679641,0.24379317,86139.0,86133.0,0.06024459]
[1764600679642,0.0116086,86143.0,86135.0,0.06415]
[1764600679837,0.0116086,86143.0,86136.0,0.06415]
[1764600679838,0.2321867,86138.0,86136.0,0.06415]
[1764600680046,0.24381525,86131.0,86128.0,0.001]
[1764600680249,0.24381369,86132.0,86129.0,0.00752]
[1764600680481,0.01160914,86139.0,86129.0,0.00752]
[1764600680482,0.01160739,86152.0,86146.0,0.0116082]
[1764600680686,0.59303529,86160.0,86151.0,0.01160752]
[1764600680897,0.01160658,86158.0,86147.0,0.10776806]
[1764600681135,0.59303529,86160.0,86142.0,0.00752]
[1764600681136,0.23216939,86144.0,86142.0,0.00752]
[1764600681345,0.23217842,86141.0,86139.0,0.04718]
[1764600681558,0.23217842,86141.0,86132.0,0.09616]
[1764600681559,0.24380175,86136.0,86132.0,0.00752]
[1764600681761,0.23219481,86135.0,86133.0,0.03520086]
[1764600681969,0.23219481,86135.0,86132.0,0.00763765]
[1764600681970,0.23219904,86133.0,86132.0,0.00011765]
[1764600682180,0.23219693,86134.0,86132.0,0.00763765]
[1764600682389,0.01160968,86135.0,86132.0,0.01924773]
[1764600682600,0.01160846,86144.0,86138.0,0.23218369]
[1764600682851,0.01160873,86142.0,86139.0,0.04041031]
[1764600683113,0.0116082,86146.0,86141.0,0.06415]
[1764600683269,0.01160846,86144.0,86141.0,0.06415]
[1764600683666,0.23217332,86143.0,86141.0,0.06415]
[1764600683846,0.01160846,86144.0,86141.0,0.13126108]
[1764600684046,0.01160914,86139.0,86134.0,0.01160981]
[1764600684246,0.01160873,86142.0,86135.0,0.24380294]
[1764600684247,0.011609,86140.0,86135.0,0.24380294]
[1764600684450,0.011609,86140.0,86138.0,0.06415]
[1764600684860,0.23218404,86139.0,86138.0,0.06415]
[1764600685485,0.01160887,86141.0,86138.0,0.06415]
[1764600685658,0.23216354,86147.0,86138.0,0.06415]
[1764600685659,0.01160833,86145.0,86140.0,0.011609]
[1764600686012,0.23219725,86134.0,86132.0,0.00011765]
[1764600686213,0.2438062,86135.0,86133.0,0.00752]
[1764600686421,0.001,86139.0,86134.0,0.07195385]
[1764600686591,0.23218885,86137.0,86134.0,0.07195385]
[1764600686975,0.23219904,86133.0,86132.0,0.00011765]
[1764600688841,0.23319904,86133.0,86132.0,0.00011765]
[1764600689278,0.23219904,86133.0,86132.0,0.00011765]
[1764600689882,0.55719904,86133.0,86132.0,0.00011765]
[1764600690080,0.67152125,86133.0,86132.0,0.00011765]
[1764600690284,0.55526645,86108.0,86107.0,0.00025605]
[1764600690482,0.59022304,86108.0,86107.0,0.00025605]
[1764600691041,0.00011743,86108.0,86107.0,0.00025605]
[1764600691958,0.32311743,86108.0,86107.0,0.00025605]
[1764600692352,0.32711743,86108.0,86107.0,0.00025605]
[1764600692553,0.33463743,86108.0,86107.0,0.00025605]
[1764600693284,0.33063743,86108.0,86107.0,0.00025605]
[1764600694131,0.00863743,86108.0,86107.0,0.00025605]
[1764600694341,0.33163743,86108.0,86107.0,0.00025605]
[1764600694547,0.26710002,86112.0,86107.0,0.00025605]
[1764600694548,0.01160981,86134.0,86121.0,0.01161156]
[1764600694771,0.01161035,86130.0,86126.0,0.01161089]
[1764600694993,0.01161049,86129.0,86110.0,0.01161305]
[1764600695191,0.01161035,86130.0,86112.0,0.2322551]
[1764600695192,0.01161237,86115.0,86112.0,0.2322551]
[1764600695346,0.24386278,86114.0,86113.0,0.02507374]
[1764600695545,0.01161251,86114.0,86110.0,0.23226067]
[1764600695841,0.0116113,86123.0,86117.0,0.0116121]
[1764600696012,0.01161143,86122.0,86117.0,0.0116121]
[1764600696216,0.01161237,86115.0,86112.0,0.01161278]
[1764600696421,0.01161143,86122.0,86112.0,0.01161278]
[1764600696422,0.01161076,86127.0,86122.0,0.01161143]
[1764600696740,0.00111754,86134.0,86132.0,0.23220052]
[1764600696915,0.00011754,86134.0,86133.0,0.07818914]
[1764600697240,0.00011754,86134.0,86133.0,0.2652783]
[1764600697722,0.06195952,86181.0,86133.0,0.2652783]
[1764600697723,0.23211729,86164.0,86160.0,0.23212552]
[1764600697901,0.0116059,86163.0,86159.0,0.27860875]
[1764600698246,0.01160712,86154.0,86149.0,0.04648]
[1764600698440,0.01160685,86156.0,86152.0,0.01561882]
[1764600698588,0.24374716,86155.0,86152.0,0.01561882]
[1764600698793,0.33460523,86168.0,86160.0,0.01160631]
[1764600698995,0.01160429,86175.0,86162.0,0.23211846]
[1764600699204,0.23211151,86166.0,86161.0,0.23212319]
[1764600699408,0.2322338,86164.0,86162.0,0.024373]
[1764600699847,0.2321333,86158.0,86156.0,0.00752]
[1764600700056,0.01160698,86155.0,86152.0,0.01761882]
[1764600700310,0.23214244,86154.0,86152.0,0.002]
[1764600700478,0.23214244,86154.0,86152.0,0.00952]
[1764600700685,0.01160846,86144.0,86141.0,0.04648]
[1764600701075,0.01160725,86153.0,86143.0,0.0191286]
[1764600701076,0.24375936,86151.0,86143.0,0.0191286]
[1764600701301,0.24375936,86151.0,86144.0,0.01160846]
[1764600701302,0.01160806,86147.0,86144.0,0.01160846]
[1764600701522,0.01160806,86147.0,86144.0,0.24377637]
[1764600701942,0.01160779,86149.0,86145.0,0.23216522]
[1764600702165,0.01160752,86151.0,86146.0,0.09130319]
[1764600702332,0.01160779,86149.0,86146.0,0.07969499]
[1764600702536,0.01160779,86149.0,86146.0,0.23216335]
[1764600702739,0.23216836,86145.0,86144.0,0.003]
[1764600703328,0.23216471,86146.0,86144.0,0.003]
[1764600704024,0.011609,86140.0,86133.0,0.04648]
[1764600704179,0.24379531,86138.0,86135.0,0.01160968]
[1764600704441,0.01160927,86138.0,86135.0,0.01160968]
[1764600704658,0.01160927,86138.0,86134.0,0.00752]
[1764600704788,0.01160927,86138.0,86104.0,0.46454963]
[1764600704789,0.01161197,86118.0,86115.0,0.09058]
[1764600704992,0.01161197,86118.0,86111.0,0.01161291]
[1764600704993,0.01161197,86118.0,86113.0,0.01161264]
[1764600705191,0.60464685,86121.0,86117.0,0.06167]
[1764600705192,0.24385088,86119.0,86117.0,0.06167]
[1764600705461,0.24385088,86119.0,86117.0,0.00011754]
[1764600705909,0.23223712,86119.0,86117.0,0.00011754]
[1764600706113,0.01161008,86132.0,86122.0,0.24384012]
[1764600706280,0.01160941,86137.0,86131.0,0.06167]
[1764600706479,0.01160914,86139.0,86133.0,0.01160995]
[1764600706678,0.24379429,86139.0,86134.0,0.01160981]
[1764600706904,0.24379429,86139.0,86132.0,0.01161008]
[1764600706905,0.01160914,86139.0,86132.0,0.01161008]
[1764600707110,0.01160995,86133.0,86128.0,0.01161062]
[1764600707312,0.01160995,86133.0,86128.0,0.24382185]
[1764600707313,0.01161008,86132.0,86128.0,0.24382185]
[1764600707540,0.24381492,86131.0,86127.0,0.01161076]
[1764600707689,0.24381492,86131.0,86125.0,0.01161103]
[1764600707897,0.01161116,86124.0,86122.0,0.00752]
[1764600708099,0.24383473,86124.0,86122.0,0.00752]
[1764600708675,0.01161035,86130.0,86122.0,0.00752]
[1764600708676,0.33460981,86134.0,86122.0,0.286766]
[1764600708883,0.01161089,86126.0,86123.0,0.03333307]
[1764600709086,0.24383142,86126.0,86123.0,0.2322254]
[1764600709290,0.23222097,86125.0,86122.0,0.29585993]
[1764600709436,0.23222097,86125.0,86122.0,0.05202]
[1764600709437,0.243832,86125.0,86122.0,0.05202]
[1764600709638,0.232226,86123.0,86122.0,0.05202]
[1764600709836,0.01161062,86128.0,86124.0,0.01161116]
[1764600710046,0.01161076,86127.0,86124.0,0.23222271]
[1764600710282,0.60464497,86135.0,86127.0,0.01161076]
[1764600710283,0.23220812,86130.0,86127.0,0.01161076]
[1764600710506,0.24381277,86132.0,86128.0,0.23221207]
[1764600710738,0.60464497,86135.0,86132.0,0.01161008]
[1764600710739,0.23219526,86135.0,86132.0,0.01161008]
[1764600711013,0.01160941,86137.0,86133.0,0.04308769]
[1764600711183,0.0116086,86143.0,86139.0,0.23218286]
[1764600711423,0.01160887,86141.0,86136.0,0.07735954]
[1764600711626,0.23217748,86141.0,86137.0,0.01160941]
[1764600711827,0.2437751,86145.0,86142.0,0.01160873]
[1764600712032,0.2437832,86143.0,86140.0,0.06575]
[1764600712231,0.24377342,86146.0,86141.0,0.04192417]
[1764600712465,0.323,86159.0,86146.0,0.0116082]
[1764600712613,0.01160779,86149.0,86142.0,0.24378334]
[1764600712809,0.0116082,86146.0,86143.0,0.0116086]
[1764600713407,0.0116082,86146.0,86143.0,0.24377933]
[1764600713622,0.01160873,86142.0,86134.0,0.01160981]
[1764600713830,0.01160846,86144.0,86139.0,0.01160914]
[1764600714136,0.2437757,86145.0,86142.0,0.23417423]
[1764600714338,0.01160887,86141.0,86119.0,0.09809]
[1764600714593,0.03483916,86145.0,86122.0,0.04713754]
[1764600714594,0.01161035,86130.0,86122.0,0.04713754]
[1764600714828,0.01161049,86129.0,86125.0,0.24383149]
[1764600715029,0.01160887,86141.0,86137.0,0.01160941]
[1764600715237,0.01160887,86141.0,86136.0,0.24379931]
[1764600715444,0.2437889,86141.0,86137.0,0.24379507]
[1764600715645,0.2437889,86141.0,86139.0,0.2321827]
[1764600716068,0.2437889,86141.0,86138.0,0.01160927]
[1764600716272,0.2437889,86141.0,86138.0,0.24379351]
[1764600716660,0.01160806,86147.0,86138.0,0.24379351]
[1764600716661,0.0116082,86146.0,86141.0,0.01160887]
[1764600716865,0.01160806,86147.0,86142.0,0.23217409]
[1764600717046,0.0116082,86146.0,86142.0,0.24378335]
[1764600717251,0.01160779,86149.0,86144.0,0.01160846]
[1764600717510,0.26697156,86158.0,86147.0,0.01160806]
[1764600717511,0.01160658,86158.0,86147.0,0.01160806]
[1764600717722,0.01160658,86158.0,86148.0,0.01160793]
[1764600717923,0.01160658,86158.0,86155.0,0.01160698]
[1764600718121,0.00748,86165.0,86155.0,0.01160698]
[1764600718122,0.0116055,86166.0,86159.0,0.01160644]
[1764600718277,0.01160577,86164.0,86161.0,0.04702]
[1764600718485,0.23211898,86163.0,86161.0,0.04702]
[1764600718731,0.23211933,86163.0,86161.0,0.04702]
[1764600718932,0.00011752,86163.0,86156.0,0.01160685]
[1764600719189,0.00011752,86163.0,86160.0,0.01160631]
[1764600719360,0.00011752,86163.0,86162.0,0.29787088]
[1764600719735,0.00011752,86163.0,86162.0,0.39596088]
[1764600719934,0.00011752,86163.0,86162.0,0.49126935]
[1764600720158,0.00011752,86163.0,86162.0,0.25914847]
[1764600720381,0.0004,86170.0,86169.0,0.23210203]
[1764600720602,0.0004,86170.0,86169.0,0.30533203]
[1764600720726,0.0004,86170.0,86169.0,0.40342203]
[1764600720932,0.0004,86170.0,86169.0,0.27613638]
[1764600721149,0.0004,86170.0,86169.0,0.41762841]
[1764600721349,0.0004,86170.0,86163.0,0.09809]
[1764600721350,0.01160537,86167.0,86163.0,0.09809]
[1764600721549,0.24410699,86170.0,86169.0,0.06575]
[1764600721550,0.0004,86170.0,86169.0,0.06575]
[1764600721878,0.24370713,86169.0,86166.0,0.0116055]
[1764600722079,0.00699178,86168.0,86164.0,0.10557]
[1764600722288,0.01160577,86164.0,86160.0,0.23212611]
[1764600722502,0.01160577,86164.0,86161.0,0.00748]
[1764600722882,0.23211881,86163.0,86161.0,0.00748]
[1764600723086,0.0004,86170.0,86163.0,0.0773559]
[1764600723285,0.23210595,86168.0,86165.0,0.07735564]
[1764600723492,1.02267378,86200.0,86183.0,0.01160321]
[1764600723721,0.02492114,86199.0,86188.0,0.01160254]
[1764600724058,0.00039165,86200.0,86194.0,0.01160173]
[1764600724196,0.01160187,86193.0,86189.0,0.00934315]
[1764600724393,0.01160173,86194.0,86191.0,0.01160213]
[1764600724591,1.00353129,86200.0,86196.0,0.01160146]
[1764600724592,0.00339165,86200.0,86196.0,0.01160146]
[1764600724800,0.23241057,86200.0,86197.0,0.24362762]
[1764600725003,0.00039165,86200.0,86198.0,0.07966472]
[1764600725206,0.23341085,86200.0,86198.0,0.07966472]
[1764600725429,0.00139165,86200.0,86198.0,0.07966472]
[1764600725632,0.00139165,86200.0,86199.0,0.23202125]
[1764600725833,0.00039165,86200.0,86199.0,0.39586125]
[1764600726227,0.0004,86210.0,86209.0,0.23199433]
[1764600726417,0.01159595,86237.0,86229.0,0.23194053]
[1764600726633,0.00051751,86230.0,86229.0,0.04702]
[1764600727030,0.01159729,86227.0,86224.0,0.00748]
[1764600727268,0.01159729,86227.0,86225.0,0.010557]
[1764600727497,0.24354589,86227.0,86225.0,0.010557]
[1764600727701,0.2319486,86227.0,86225.0,0.010557]
[1764600728429,0.24406053,86230.0,86209.0,0.04702]
[1764600728430,0.01159931,86212.0,86209.0,0.04702]
[1764600728636,0.01160065,86202.0,86196.0,0.04702]
[1764600728873,0.23200779,86204.0,86198.0,0.23202274]
[1764600729074,0.01160065,86202.0,86197.0,0.00748]
[1764600729281,0.01160065,86202.0,86198.0,0.04257455]
[1764600729481,0.23201692,86201.0,86198.0,0.12906336]
[1764600729814,0.23201692,86201.0,86198.0,0.14066455]
[1764600729815,0.00011745,86201.0,86198.0,0.14066455]
[1764600730022,0.00011745,86201.0,86199.0,0.09809]
[1764600730419,0.23213451,86201.0,86199.0,0.09809]
[1764600730644,0.23213451,86201.0,86199.0,0.12052679]
[1764600731134,0.00011745,86201.0,86200.0,0.06575]
[1764600731678,0.00011745,86201.0,86200.0,0.16384]
[1764600732471,0.00011745,86201.0,86200.0,0.00848]
[1764600732674,0.00011745,86201.0,86200.0,0.17232]
[1764600732821,0.00011745,86201.0,86200.0,0.25685915]
[1764600733026,0.00011745,86201.0,86200.0,0.007]
[1764600733227,0.00011745,86201.0,86200.0,0.01448]
[1764600733433,0.00011745,86201.0,86200.0,0.007]
[1764600733862,0.00011745,86201.0,86200.0,0.001]
[1764600734069,0.00111745,86201.0,86200.0,0.001]
[1764600734501,0.00011745,86201.0,86200.0,0.001]
[1764600734710,0.00615745,86201.0,86200.0,0.001]
[1764600734913,0.00615745,86201.0,86173.0,0.04702]
[1764600734914,0.01160415,86176.0,86173.0,0.04702]
[1764600735120,0.23208643,86175.0,86173.0,0.04702]
[1764600735530,0.24371052,86168.0,86167.0,0.00748]
[1764600735932,0.01160469,86172.0,86167.0,0.17132]
[1764600736135,0.01160496,86170.0,86167.0,0.17132]
[1764600736336,0.23210041,86170.0,86167.0,0.07362165]
[1764600736557,0.23208118,86177.0,86167.0,0.07362165]
[1764600736558,0.24367977,86179.0,86169.0,0.29785184]
[1764600736766,0.23209158,86173.0,86170.0,0.06575]
[1764600736969,0.24369324,86174.0,86170.0,0.30945289]
[1764600737144,1.0115387,86220.0,86173.0,0.30881493]
[1764600737145,0.01160308,86184.0,86173.0,0.30881493]
[1764600737372,0.23208317,86176.0,86175.0,0.06512]
[1764600738001,0.23209248,86173.0,86170.0,0.01160496]
[1764600738160,0.23209763,86171.0,86167.0,0.00787165]
[1764600738367,0.23209877,86171.0,86167.0,0.02549184]
[1764600738568,0.23209877,86171.0,86167.0,0.11565184]
[1764600738569,0.01160483,86171.0,86167.0,0.11565184]
[1764600738770,0.01160483,86171.0,86168.0,0.23210441]
[1764600738985,0.23209961,86170.0,86168.0,0.09016]
[1764600739297,0.23210203,86169.0,86168.0,0.09016]
[1764600739522,0.23210203,86169.0,86167.0,0.00039165]
[1764600739523,0.24370457,86170.0,86167.0,0.00039165]
[1764600739728,0.23210203,86169.0,86168.0,0.03775331]
[1764600739868,0.23210472,86168.0,86167.0,0.00039165]
[1764600740808,0.23512472,86168.0,86167.0,0.00039165]
[1764600741015,0.23814472,86168.0,86167.0,0.00039165]
[1764600741213,0.62366771,86168.0,86167.0,0.00039165]
[1764600741462,0.64854101,86168.0,86167.0,0.00239165]
[1764600741664,0.64854101,86168.0,86130.0,0.04551]
[1764600741665,0.23220443,86131.0,86130.0,0.04551]
[1764600741868,0.01160914,86139.0,86130.0,0.04562752]
[1764600742219,0.00748,86154.0,86130.0,0.04562752]
[1764600742220,0.01160846,86144.0,86138.0,0.06512]
[1764600742431,0.01160846,86144.0,86135.0,0.01160968]
[1764600742432,0.0116086,86143.0,86141.0,0.04551]
[1764600742665,0.01160846,86144.0,86141.0,0.04551]
[1764600742871,0.01160954,86136.0,86131.0,0.01808208]
[1764600743077,0.01160968,86135.0,86132.0,0.0094411]
[1764600743282,0.01160981,86134.0,86132.0,0.00748]
[1764600743484,0.01160954,86136.0,86132.0,0.01909008]
[1764600743687,0.01160968,86135.0,86133.0,0.15528]
[1764600743905,0.01160968,86135.0,86133.0,0.09016]
[1764600744104,0.2438009,86136.0,86134.0,0.13117853]
[1764600744614,0.23220443,86131.0,86130.0,0.04562752]
[1764600744839,0.23220443,86131.0,86130.0,0.05310752]
[1764600745592,0.27006359,86131.0,86130.0,0.00011752]
[1764600745779,0.23220443,86131.0,86130.0,0.00011752]
[1764600746811,0.23220443,86131.0,86130.0,0.00111752]
[1764600747212,0.27006359,86131.0,86130.0,0.00111752]
[1764600747513,0.26704359,86131.0,86130.0,0.00111752]
[1764600749152,0.23220443,86131.0,86130.0,0.00111752]
[1764600749367,0.01160968,86135.0,86130.0,0.00111752]
[1764600749368,0.01160981,86134.0,86130.0,0.00111752]
[1764600749585,0.00748,86146.0,86136.0,0.01160954]
[1764600749912,0.0116055,86166.0,86157.0,0.01160671]
[1764600750069,0.99153872,86170.0,86160.0,0.01160631]
[1764600750278,0.23211297,86165.0,86161.0,0.00700532]
[1764600750471,0.01160523,86168.0,86164.0,0.24372127]
[1764600750632,0.24372385,86164.0,86161.0,0.04684]
[1764600750832,0.01160564,86165.0,86161.0,0.04684]
[1764600751047,0.01160577,86164.0,86161.0,0.04684]
[1764600751265,0.0136055,86166.0,86161.0,0.04684]
[1764600751266,0.002,86166.0,86165.0,0.2321128]
[1764600751494,0.002,86166.0,86165.0,0.2974628]
[1764600751702,0.002,86166.0,86165.0,0.3924128]
[1764600751918,0.04644116,86192.0,86187.0,0.01160267]
[1764600752135,0.00039165,86192.0,86189.0,0.0116024]
[1764600752368,0.01160106,86199.0,86192.0,0.011602]
[1764600752586,0.01160106,86199.0,86197.0,0.23202399]
[1764600752587,0.00011745,86199.0,86197.0,0.23202399]
[1764600753080,0.00011745,86199.0,86198.0,0.09495]
[1764600753294,0.00011745,86199.0,86194.0,0.23202633]
[1764600753295,0.01160133,86197.0,86192.0,0.24364154]
[1764600753507,0.24362125,86200.0,86196.0,0.01160146]
[1764600753716,0.99153872,86203.0,86197.0,0.01160133]
[1764600753934,0.23202222,86199.0,86197.0,0.001]
[1764600754154,0.01160106,86199.0,86193.0,0.01060187]
[1764600754379,0.01160119,86198.0,86183.0,0.01160321]
[1764600754589,0.01160146,86196.0,86192.0,0.011602]
[1764600755023,0.01160119,86198.0,86193.0,0.2436383]
[1764600755231,0.23200386,86206.0,86197.0,0.12379133]
[1764600755453,0.01160052,86203.0,86198.0,0.01160119]
[1764600755801,0.24362145,86200.0,86197.0,0.04684]
[1764600755947,0.01160052,86203.0,86198.0,0.01160119]
[1764600756149,0.01160025,86205.0,86200.0,0.01160092]
[1764600756355,0.01159823,86220.0,86211.0,0.23198895]
[1764600756554,0.01159823,86220.0,86208.0,0.23947622]
[1764600756555,0.01159904,86214.0,86208.0,0.23947622]
[1764600756785,0.24359067,86211.0,86208.0,0.00748]
[1764600757003,0.23199324,86210.0,86209.0,0.02626807]
[1764600757199,0.24359067,86211.0,86209.0,0.02626807]
[1764600757398,0.23199255,86210.0,86208.0,0.00748]
[1764600758042,0.24360721,86205.0,86201.0,0.23201509]
[1764600758248,0.01159985,86208.0,86206.0,0.00748]
[1764600758249,0.24359823,86208.0,86206.0,0.00748]
[1764600758434,0.24359321,86210.0,86206.0,0.01908012]
[1764600758624,0.24359321,86210.0,86197.0,0.04684]
[1764600758625,0.23199703,86208.0,86197.0,0.04684]
[1764600758802,0.01159958,86210.0,86208.0,0.002]
[1764600759002,0.24359474,86209.0,86205.0,0.23200401]
[1764600759208,0.23202394,86198.0,86197.0,0.04684]
[1764600759420,0.2436208,86200.0,86197.0,0.04684]
[1764600759754,0.01302,86229.0,86224.0,0.01159769]
[1764600759979,0.01302,86229.0,86221.0,0.0115981]
[1764600759980,0.01171442,86229.0,86221.0,0.0584381]
[1764600760133,0.0001174,86229.0,86226.0,0.01159743]
[1764600760455,0.0001174,86229.0,86225.0,0.01159756]
[1764600760662,0.23195872,86223.0,86221.0,0.04684]
[1764600760861,0.01159729,86227.0,86218.0,0.00748]
[1764600761059,0.0001174,86229.0,86226.0,0.01159743]
[1764600761286,0.0011174,86229.0,86227.0,0.23194453]
[1764600761489,0.0011174,86229.0,86228.0,0.04870855]
[1764600761620,0.0001174,86229.0,86228.0,0.04870855]
[1764600761828,0.0001174,86229.0,86227.0,0.23194579]
[1764600762064,0.0001174,86229.0,86228.0,0.1603]
[1764600762413,0.0001174,86229.0,86228.0,0.16778]
[1764600762825,0.0001174,86229.0,86228.0,0.17278]
[1764600763025,0.0001174,86229.0,86228.0,0.28515624]
[1764600763369,0.0001174,86229.0,86228.0,0.11985624]
[1764600763672,0.0001174,86229.0,86228.0,0.01248]
[1764600764618,0.0001174,86229.0,86228.0,0.005]
[1764600765499,0.23191632,86238.0,86228.0,0.005]
[1764600765680,0.23191632,86238.0,86226.0,0.01159743]
[1764600765681,0.01159648,86233.0,86229.0,0.23194021]
[1764600765884,0.01159648,86233.0,86223.0,0.01907783]
[1764600765885,0.01159729,86227.0,86222.0,0.01159796]
[1764600766124,0.99153872,86232.0,86230.0,0.23193743]
[1764600766445,0.01159648,86233.0,86230.0,0.23193756]
[1764600766622,0.24352594,86234.0,86228.0,0.01159716]
[1764600766823,0.00419516,86231.0,86230.0,0.01159689]
[1764600768314,0.00419516,86231.0,86229.0,0.04370299]
[1764600768523,0.23193784,86230.0,86228.0,0.003]
[1764600768745,0.24353473,86230.0,86226.0,0.01159743]
[1764600768947,0.01159675,86231.0,86223.0,0.06591783]
[1764600768948,0.01159662,86232.0,86225.0,0.01159756]
[1764600769149,0.23193515,86231.0,86230.0,0.003]
[1764600769355,1.22345235,86240.0,86227.0,0.01159729]